bitfinex/quotes_ETHUSD_20230905
["timestamp","ask_amount","ask_price","bid_price","bid_amount"]
[1693922693115,16.64845426,1630.9,1630.6,6.13265]
[1693922693398,16.64845426,1630.9,1630.5,6.13283]
[1693922693600,16.64845426,1630.9,1630.5,12.26574]
[1693922693898,16.64845426,1630.9,1630.5,14.32972487]
[1693922694067,10.51673426,1630.9,1630.5,20.46280487]
[1693922694267,15.33031426,1630.9,1630.5,20.46280487]
[1693922694458,9.19859426,1630.9,1630.5,20.46280487]
[1693922696275,15.33017426,1630.9,1630.5,20.46280487]
[1693922696611,22.77975426,1630.9,1630.5,8.19681487]
[1693922696817,20.01069169,1630.9,1630.5,6.13283]
[1693922696970,20.01069169,1630.9,1630.5,12.26591]
[1693922697411,16.64817426,1630.9,1630.5,12.26591]
[1693922697610,15.33017426,1630.9,1630.5,12.26591]
[1693922698024,9.19859426,1630.9,1630.5,18.39899]
[1693922698992,15.33017426,1630.9,1630.5,18.39899]
[1693922700593,15.33017426,1630.9,1630.5,12.26591]
[1693922700594,16.64817426,1630.9,1630.5,12.26591]
[1693922700796,19.26573369,1630.9,1630.5,6.13283]
[1693922700992,2.2148,1630.8,1630.5,12.26591]
[1693922701197,11.41389426,1630.8,1630.5,12.26591]
[1693922701394,5.28181426,1630.8,1630.5,12.26591]
[1693922701596,2.4268,1631.0,1630.6,1.226591]
[1693922701802,11.62513426,1631.0,1630.7,12.26456]
[1693922702748,17.75654426,1631.0,1630.7,12.26456]
[1693922702936,5.49381426,1631.0,1630.7,12.26456]
[1693922703644,11.62502426,1631.0,1630.7,12.26456]
[1693922703802,11.62502426,1631.0,1630.8,1.226456]
[1693922704148,11.62502426,1631.0,1630.7,12.26456]
[1693922704506,17.75623426,1631.0,1630.7,12.26456]
[1693922707510,3.06701426,1630.9,1630.6,7.359251]
[1693922707710,9.19864426,1630.9,1630.6,12.26525]
[1693922707930,15.33054426,1630.9,1630.6,12.26525]
[1693922708130,10.66051,1631.0,1630.6,18.39796]
[1693922708337,13.72752426,1631.0,1630.6,18.39796]
[1693922708643,11.62502426,1631.0,1630.8,6.13195]
[1693922709614,17.75633426,1631.0,1630.8,6.13195]
[1693922709821,17.75633426,1631.0,1630.7,12.26439]
[1693922710023,17.75633426,1631.0,1630.7,6.13219]
[1693922710349,3.06701426,1630.9,1630.6,6.13247]
[1693922710545,6.13195,1630.8,1630.5,6.13295]
[1693922710747,3.06701426,1630.7,1630.3,14.60820751]
[1693922710951,3.06701426,1630.7,1630.4,1.06616757]
[1693922710952,6.13275,1630.6,1630.4,1.06616757]
[1693922711112,9.19976426,1630.6,1630.4,6.13326]
[1693922711311,3.06701426,1630.6,1630.4,12.26672]
[1693922712414,15.33245426,1630.6,1630.3,13.96650771]
[1693922712610,15.33245426,1630.6,1630.3,6.23365]
[1693922712825,3.06701426,1630.5,1630.3,0.1]
[1693922713113,6.13346,1630.4,1630.3,0.1]
[1693922715040,15.33393426,1630.4,1630.3,0.1]
[1693922715551,21.46739426,1630.4,1630.3,0.1]
[1693922715738,23.82752369,1630.4,1630.3,0.1]
[1693922716527,17.69406369,1630.4,1630.3,0.1]
[1693922716728,25.14552369,1630.4,1630.3,0.1]
[1693922717753,19.01206369,1630.4,1630.3,0.1]
[1693922717954,25.14552369,1630.4,1630.3,0.1]
[1693922718154,19.01206369,1630.4,1630.3,0.1]
[1693922718348,25.14552369,1630.4,1630.3,0.1]
[1693922718814,19.01206369,1630.4,1630.3,0.1]
[1693922718966,5.42714369,1630.4,1630.3,0.1]
[1693922719172,9.20047426,1630.4,1630.3,0.1]
[1693922719373,15.33393426,1630.4,1630.3,0.1]
[1693922727928,9.20047426,1630.4,1630.3,0.1]
[1693922730325,2.1339,1630.5,1630.3,12.36768]
[1693922730484,9.20021426,1630.5,1630.3,6.23384]
[1693922731487,15.33341426,1630.5,1630.3,0.1]
[1693922731690,3.06701426,1630.4,1630.3,0.1]
[1693922731882,15.33393426,1630.4,1630.3,0.1]
[1693922732190,15.63196974,1630.4,1630.3,0.1]
[1693922733320,21.76542974,1630.4,1630.3,0.1]
[1693922733506,23.08342974,1630.4,1630.3,0.1]
[1693922733831,26.24129896,1630.4,1630.3,0.1]
[1693922736095,26.72129896,1630.4,1630.3,0.1]
[1693922736335,29.72129896,1630.4,1630.3,0.1]
[1693922743476,29.96684496,1630.4,1630.3,0.1]
[1693922745448,30.57984471,1630.4,1630.1,0.1]
[1693922745649,33.73806426,1630.2,1630.1,0.1]
[1693922745891,35.05606426,1630.2,1630.1,0.1]
[1693922746039,38.82148318,1630.2,1630.0,0.1]
[1693922746237,4.86501426,1630.1,1630.0,0.1]
[1693922746435,30.15093258,1630.1,1630.0,0.1]
[1693922753608,30.43578246,1630.1,1630.0,0.1]
[1693922768852,29.95578246,1630.1,1630.0,0.1]
[1693922769060,26.07363414,1630.1,1630.0,0.1]
[1693922769613,12.48645414,1630.1,1630.0,0.1]
[1693922769919,9.48645414,1630.1,1630.0,0.1]
[1693922770328,15.62104414,1630.1,1630.0,0.1]
[1693922771758,6.41943988,1630.1,1630.0,0.1]
[1693922771962,0.28484988,1630.1,1630.0,0.723507]
[1693922772164,0.28484988,1630.1,1630.0,6.858467]
[1693922773459,0.28484988,1630.1,1630.0,12.993427]
[1693922773621,6.13389,1630.3,1630.0,12.993427]
[1693922773837,6.379146,1630.4,1630.0,12.993427]
[1693922774035,0.28616652,1630.2,1630.1,1.2993427]
[1693922774274,0.28616652,1630.2,1630.1,13.5682427]
[1693922774481,6.13349,1630.4,1630.1,13.5682427]
[1693922774863,6.13349,1630.4,1630.1,19.7028327]
[1693922776778,6.13321,1630.5,1630.1,19.7028327]
[1693922776981,9.54896395,1630.7,1630.2,3.28828327]
[1693922777277,18.74853821,1630.7,1630.3,12.2673]
[1693922778072,18.74853821,1630.7,1630.3,12.2173]
[1693922778258,18.74853821,1630.7,1630.3,18.35114]
[1693922778477,18.74853821,1630.7,1630.4,1.835114]
[1693922778645,18.74853821,1630.7,1630.4,7.968334]
[1693922779348,15.68152395,1630.7,1630.4,7.968334]
[1693922779687,30.45,1630.8,1630.5,1.318]
[1693922779844,12.26363,1630.9,1630.6,6.13271]
[1693922780046,9.19870426,1630.9,1630.7,0.613271]
[1693922780462,15.33064426,1630.9,1630.7,0.613271]
[1693922780680,15.33064426,1630.9,1630.7,6.745581]
[1693922781395,3.06701426,1630.8,1630.5,6.13274]
[1693922781620,15.33129426,1630.8,1630.4,6.13324]
[1693922781903,21.46357426,1630.8,1630.4,6.13324]
[1693922782458,21.46357426,1630.8,1630.3,12.26729]
[1693922782658,2.14635743,1630.7,1630.2,6.13405]
[1693922782864,21.46550426,1630.6,1630.2,12.26804]
[1693922783470,0.29990324,1630.5,1630.2,12.26804]
[1693922783670,3.3669175,1630.5,1630.2,18.40225]
[1693922784264,9.5000175,1630.5,1630.2,18.40225]
[1693922785183,3.3669175,1630.5,1630.2,18.40225]
[1693922785709,3.3669175,1630.5,1630.2,20.59100093]
[1693922786063,9.5000075,1630.5,1630.2,20.59100093]
[1693922789631,3.3669175,1630.5,1630.2,20.59100093]
[1693922791818,3.3669175,1630.5,1630.2,21.90900093]
[1693922791819,0.29990324,1630.5,1630.2,21.90900093]
[1693922792430,8.44257,1630.7,1630.2,21.90900093]
[1693922792688,8.44257,1630.7,1630.4,12.26676]
[1693922792821,11.50958426,1630.7,1630.4,12.26676]
[1693922793023,17.64213426,1630.7,1630.4,12.26676]
[1693922793598,3.06701426,1630.6,1630.4,6.13338]
[1693922793797,9.19996426,1630.6,1630.4,6.13338]
[1693922795107,11.57747269,1630.6,1630.3,6.13354]
[1693922795312,17.71042269,1630.6,1630.3,6.13354]
[1693922798085,1.318,1630.5,1630.1,12.26884]
[1693922798299,9.20054426,1630.4,1630.1,12.269]
[1693922798591,15.62033245,1630.4,1630.1,12.269]
[1693922798743,9.48680245,1630.4,1630.1,12.269]
[1693922799090,5.54307245,1630.4,1630.1,18.40359]
[1693922799474,11.67665245,1630.4,1630.1,12.269]
[1693922799654,14.0709847,1630.4,1630.1,12.269]
[1693922799857,20.2045647,1630.4,1630.1,12.269]
[1693922800073,20.2045647,1630.4,1630.1,6.13441]
[1693922800246,20.2045647,1630.4,1630.1,12.269]
[1693922800447,14.0709847,1630.4,1630.1,12.269]
[1693922800979,14.0709847,1630.4,1630.1,18.40359]
[1693922801476,20.2045647,1630.4,1630.1,12.269]
[1693922801772,14.0709847,1630.4,1630.1,12.269]
[1693922802154,20.2045647,1630.4,1630.1,12.269]
[1693922802474,14.0709847,1630.4,1630.1,12.269]
[1693922802779,11.67665245,1630.4,1630.1,12.269]
[1693922805872,2.47605819,1630.4,1630.1,18.40359]
[1693922806075,0.28625819,1630.4,1630.1,19.72159]
[1693922806673,2.1447,1630.6,1630.1,19.72159]
[1693922806866,5.21171426,1630.6,1630.2,3.290159]
[1693922807078,5.21171426,1630.6,1630.3,12.26752]
[1693922807874,5.21171426,1630.6,1630.3,18.40136]
[1693922809500,2.1447,1630.6,1630.3,18.40136]
[1693922809713,15.26424,1630.8,1630.3,18.40136]
[1693922809884,15.26424,1630.8,1630.4,1.840136]
[1693922809885,3.06701426,1630.7,1630.4,1.840136]
[1693922810087,3.06701426,1630.7,1630.5,6.13301]
[1693922810285,9.19945426,1630.7,1630.5,6.13301]
[1693922810959,9.19945426,1630.7,1630.4,6.13312]
[1693922810960,15.33189426,1630.7,1630.4,12.26634]
[1693922811906,0.031,1630.6,1630.4,12.26634]
[1693922812106,0.031,1630.6,1630.4,14.106345]
[1693922812816,2.263,1630.6,1630.4,14.106345]
[1693922813522,2.263,1630.6,1630.4,7.973125]
[1693922813728,0.28126216,1630.5,1630.4,7.973125]
[1693922814589,0.28126216,1630.5,1630.2,8.106199]
[1693922814790,6.41434216,1630.5,1630.2,12.26811]
[1693922816001,6.41434216,1630.5,1630.2,6.13404]
[1693922816002,15.61443642,1630.5,1630.2,6.13404]
[1693922818650,3.06701426,1630.4,1630.2,6.13404]
[1693922819430,5.26141426,1630.4,1630.2,6.13404]
[1693922819616,11.39493426,1630.4,1630.2,6.13404]
[1693922820425,5.26141426,1630.4,1630.2,6.13404]
[1693922821126,0.28126216,1630.5,1630.2,6.13404]
[1693922821328,3.06701426,1630.3,1630.2,6.13404]
[1693922821495,3.06701426,1630.3,1630.2,13.33457372]
[1693922823296,2.43726216,1630.5,1630.2,13.33457372]
[1693922823566,2.43726216,1630.5,1630.2,18.40246]
[1693922823567,3.06701426,1630.4,1630.2,18.40246]
[1693922823715,3.06701426,1630.4,1630.2,22.86197972]
[1693922824040,3.06701426,1630.4,1630.2,21.26254324]
[1693922825699,0.28126216,1630.5,1630.2,22.58054324]
[1693922826041,0.28126216,1630.5,1630.3,1.318]
[1693922826333,0.28126216,1630.5,1630.4,12.26692]
[1693922827031,6.41434216,1630.5,1630.3,6.13353]
[1693922827999,0.28126216,1630.5,1630.3,12.26737]
[1693922830025,2.57416216,1630.5,1630.3,12.26737]
[1693922831362,8.70729216,1630.5,1630.3,6.13353]
[1693922831925,8.70729216,1630.5,1630.2,12.2679]
[1693922832127,8.70729216,1630.5,1630.2,14.29044316]
[1693922833237,8.70729216,1630.5,1630.2,12.2679]
[1693922833532,9.66392832,1630.5,1630.2,12.2679]
[1693922834044,8.70729216,1630.5,1630.2,18.40211]
[1693922834230,0.28126216,1630.5,1630.2,18.40211]
[1693922834485,0.28126216,1630.5,1630.3,3.51935931]
[1693922834771,0.28126216,1630.5,1630.4,24.53384]
[1693922834942,0.031,1630.6,1630.4,25.59996349]
[1693922835128,0.031,1630.6,1630.5,19.71724]
[1693922840465,0.031,1630.6,1630.5,21.03524]
[1693922840659,0.031,1630.6,1630.5,24.665456]
[1693922840959,0.031,1630.6,1630.5,28.73144096]
[1693922841279,0.031,1630.6,1630.5,26.347456]
[1693922841672,0.28794574,1630.6,1630.5,26.347456]
[1693922842037,0.031,1630.6,1630.5,26.347456]
[1693922843274,0.2877453,1630.6,1630.5,26.347456]
[1693922843463,0.031,1630.6,1630.5,25.029456]
[1693922843862,0.28779886,1630.6,1630.5,25.029456]
[1693922844073,0.031,1630.6,1630.5,25.029456]
[1693922844878,0.031,1630.6,1630.5,25.52093563]
[1693922846355,0.031,1630.6,1630.5,21.89071963]
[1693922854608,0.031,1630.6,1630.5,12.26616]
[1693922854824,3.09801426,1630.6,1630.4,6.13321]
[1693922855109,3.09801426,1630.6,1630.4,12.26667]
[1693922855712,3.09801426,1630.6,1630.4,12.74616015]
[1693922855919,4.47183969,1630.6,1630.4,12.26667]
[1693922856316,3.09801426,1630.6,1630.4,12.26667]
[1693922856635,3.09801426,1630.6,1630.4,18.40013]
[1693922857790,0.031,1630.6,1630.4,18.40013]
[1693922858694,0.24437224,1630.5,1630.4,18.40013]
[1693922859022,0.24437224,1630.5,1630.4,19.71813]
[1693922859179,0.24437224,1630.5,1630.4,22.303316]
[1693922859517,0.24437224,1630.5,1630.4,25.303316]
[1693922859697,0.24437224,1630.5,1630.4,29.36937079]
[1693922859886,0.031,1630.6,1630.4,29.36937079]
[1693922860082,0.031,1630.6,1630.5,1.318]
[1693922860290,0.031,1630.6,1630.5,22.5475716]
[1693922860505,0.031,1630.6,1630.5,21.2295716]
[1693922870331,0.031,1630.6,1630.5,22.5475716]
[1693922870834,0.031,1630.6,1630.5,21.2295716]
[1693922872968,0.031,1630.6,1630.5,21.73032977]
[1693922873664,0.25613562,1630.6,1630.5,21.73032977]
[1693922873971,0.24613562,1630.6,1630.5,21.73032977]
[1693922878364,0.24613562,1630.6,1630.5,15.59724977]
[1693922878569,0.24613562,1630.6,1630.5,21.73032977]
[1693922880807,0.24613562,1630.6,1630.5,12.76691817]
[1693922880994,3.31314988,1630.6,1630.5,6.13308]
[1693922881503,15.57856988,1630.6,1630.3,12.74723133]
[1693922881807,9.44585988,1630.6,1630.3,6.61356133]
[1693922881993,5.43115448,1630.6,1630.3,18.88124133]
[1693922882399,11.56388448,1630.6,1630.3,18.88124133]
[1693922882703,0.24613562,1630.6,1630.3,20.19924133]
[1693922884526,0.24613562,1630.6,1630.3,18.88124133]
[1693922884908,0.24613562,1630.6,1630.3,20.48049829]
[1693922885902,0.24613562,1630.6,1630.3,21.79849829]
[1693922888315,0.24613562,1630.6,1630.3,20.48049829]
[1693922888629,0.24613562,1630.6,1630.3,23.6991471]
[1693922888796,0.24613562,1630.6,1630.3,22.09989014]
[1693922891844,0.24613562,1630.6,1630.4,2.38411337]
[1693922892044,0.24613562,1630.6,1630.5,25.85032]
[1693922892714,0.24613562,1630.6,1630.5,31.08805043]
[1693922892909,0.24613562,1630.6,1630.5,38.41961974]
[1693922893104,0.021,1630.6,1630.5,38.41961974]
[1693922894645,0.23852039,1630.6,1630.5,38.41961974]
[1693922896146,0.23852039,1630.6,1630.5,37.77797994]
[1693922896851,0.021,1630.6,1630.5,37.77797994]
[1693922898459,0.021,1630.6,1630.5,36.45997994]
[1693922898958,0.021,1630.6,1630.5,35.84698019]
[1693922900831,0.23607418,1630.6,1630.5,35.84698019]
[1693922901959,0.23607418,1630.6,1630.5,37.64507545]
[1693922902327,0.021,1630.6,1630.5,37.64507545]
[1693922903563,0.021,1630.6,1630.5,38.57785057]
[1693922905072,0.021,1630.6,1630.5,38.57785057]
[1693922908294,0.021,1630.6,1630.5,37.25985057]
[1693922908489,0.021,1630.6,1630.5,37.25966917]
[1693922909096,0.95663616,1631.2,1630.8,18.39531]
[1693922909275,2.4193,1631.1,1631.0,12.2624]
[1693922909466,4.5853,1631.1,1631.0,12.2624]
[1693922909795,4.80097151,1631.1,1631.0,12.2624]
[1693922910170,4.80097151,1631.1,1631.0,6.1312]
[1693922910476,4.80097151,1631.1,1631.0,12.2624]
[1693922911296,4.80097151,1631.1,1631.0,14.714893]
[1693922913252,4.80097151,1631.1,1631.0,6.1312]
[1693922913527,4.80097151,1631.1,1631.0,12.2624]
[1693922913922,4.80097151,1631.1,1631.0,6.1312]
[1693922915506,10.93180151,1631.1,1631.0,6.1312]
[1693922916222,4.80097151,1631.1,1631.0,6.1312]
[1693922916624,10.93180151,1631.1,1631.0,6.1312]
[1693922917525,10.93180151,1631.1,1630.8,6.13183]
[1693922917526,27.96670392,1631.1,1630.7,12.26437]
[1693922917697,27.96670392,1631.1,1630.7,6.13215]
[1693922918027,27.96670392,1631.1,1630.7,12.26437]
[1693922918431,28.92334008,1631.1,1630.7,12.74836886]
[1693922918594,3.06701426,1631.0,1630.7,12.74836886]
[1693922918796,9.19846426,1631.0,1630.7,12.74836886]
[1693922919103,0.21515161,1630.9,1630.7,12.74836886]
[1693922919518,2.42065161,1630.9,1630.7,12.74836886]
[1693922919712,2.42065161,1630.9,1630.7,18.88069886]
[1693922919923,2.42065161,1630.9,1630.7,21.38201775]
[1693922925048,2.42065161,1630.9,1630.7,22.70001775]
[1693922925212,0.21515161,1630.9,1630.8,1.318]
[1693922925418,0.21515161,1630.9,1630.8,19.71385]
[1693922925617,2.4193,1631.1,1630.8,19.71385]
[1693922925820,2.4193,1631.1,1630.9,1.971385]
[1693922925821,2.1337,1631.0,1630.9,1.971385]
[1693922926020,2.1337,1631.0,1630.9,20.366125]
[1693922928255,2.1337,1631.0,1630.9,14.234545]
[1693922929252,2.1337,1631.0,1630.9,12.26316]
[1693922930653,2.1337,1631.0,1630.9,6.13158]
[1693922932756,8.2649,1631.0,1630.7,12.74839886]
[1693922932925,17.46311426,1631.0,1630.7,12.74839886]
[1693922933453,0.2129758,1630.9,1630.7,12.74839886]
[1693922935742,3.27999006,1630.9,1630.7,12.74839886]
[1693922936649,9.41158006,1630.9,1630.7,0.48399886]
[1693922936849,5.75643968,1630.9,1630.7,6.13217]
[1693922937150,5.75643968,1630.9,1630.7,12.2645]
[1693922937749,9.41158006,1630.9,1630.7,12.2645]
[1693922937947,9.41158006,1630.9,1630.7,6.13217]
[1693922938757,3.27999006,1630.9,1630.7,12.2645]
[1693922939351,9.41160006,1630.9,1630.7,6.13217]
[1693922940444,10.36823622,1630.9,1630.7,6.13217]
[1693922940649,17.85519819,1630.9,1630.5,6.61294526]
[1693922940856,20.27689819,1630.9,1630.6,6.13245]
[1693922941062,20.27689819,1630.9,1630.6,12.26498]
[1693922941063,13.18865203,1630.9,1630.6,12.26498]
[1693922941259,14.14528819,1630.9,1630.6,12.26498]
[1693922941777,13.18865203,1630.9,1630.6,12.26498]
[1693922942681,13.18865203,1630.9,1630.6,18.39769]
[1693922944492,11.83330006,1630.9,1630.6,18.39769]
[1693922944655,5.70169006,1630.9,1630.6,18.39769]
[1693922946290,11.83327006,1630.9,1630.6,18.39769]
[1693922946982,17.96485006,1630.9,1630.6,6.13245]
[1693922947150,3.06701426,1630.8,1630.6,6.13245]
[1693922947351,16.18562471,1630.8,1630.5,6.61295526]
[1693922947568,10.05336471,1630.8,1630.6,6.1326]
[1693922947769,12.35146471,1630.8,1630.6,6.1326]
[1693922948185,12.35146471,1630.8,1630.6,12.26531]
[1693922948490,0.21280191,1630.7,1630.6,12.26531]
[1693922950496,22.93323283,1630.7,1630.4,6.74568]
[1693922950721,3.06701426,1630.6,1630.2,42.71838]
[1693922950857,6.13316,1630.5,1630.2,42.71838]
[1693922951189,6.13316,1630.5,1630.2,12.26838]
[1693922951388,8.60666,1630.5,1630.2,12.26838]
[1693922952299,14.73982,1630.5,1630.2,12.26838]
[1693922952458,8.60666,1630.5,1630.2,12.26838]
[1693922952664,11.67367426,1630.5,1630.2,12.26838]
[1693922953095,5.54051426,1630.5,1630.2,18.40259]
[1693922953678,11.67360426,1630.5,1630.2,18.40259]
[1693922953997,11.67360426,1630.5,1630.2,18.89296646]
[1693922956703,11.67360426,1630.5,1630.2,20.78435891]
[1693922960501,6.34525191,1630.7,1630.2,20.78435891]
[1693922960703,6.34525191,1630.7,1630.2,28.23656891]
[1693922961480,0.21280191,1630.7,1630.2,28.23656891]
[1693922961686,0.21280191,1630.7,1630.3,1.318]
[1693922961885,0.21280191,1630.7,1630.4,18.40014]
[1693922962105,0.21280191,1630.7,1630.5,1.840014]
[1693922962428,0.21280191,1630.7,1630.6,6.13271]
[1693922967031,0.21280191,1630.7,1630.6,6.13271]
[1693922968100,0.21280191,1630.7,1630.6,12.26542]
[1693922968302,0.21280191,1630.7,1630.6,18.39813]
[1693922968508,0.21280191,1630.7,1630.6,12.26542]
[1693922968719,0.21280191,1630.7,1630.6,15.0343144]
[1693922969001,0.21280191,1630.7,1630.6,22.4850244]
[1693922969510,10.78914,1631.1,1630.6,22.4850244]
[1693922969707,6.13121,1631.0,1630.6,22.4850244]
[1693922969907,0.20351236,1630.7,1630.6,22.4850244]
[1693922970220,6.13121,1631.0,1630.6,22.4850244]
[1693922970421,6.13121,1631.0,1630.7,2.24850244]
[1693922970737,6.13121,1631.0,1630.8,6.13195]
[1693922971109,7.72531426,1631.1,1630.8,12.2639]
[1693922971308,10.40997201,1631.3,1630.8,19.71385]
[1693922971309,7.40997201,1631.3,1630.8,19.71385]
[1693922971514,21.16164627,1631.3,1630.9,1.971385]
[1693922971710,21.16164627,1631.3,1631.0,6.13113]
[1693922971910,19.88187426,1631.3,1631.0,6.13113]
[1693922972145,21.16164627,1631.3,1631.0,6.13113]
[1693922974218,21.16170627,1631.3,1631.0,14.2988255]
[1693922974430,13.75140426,1631.3,1631.0,14.2988255]
[1693922975314,19.88149426,1631.3,1631.0,14.2988255]
[1693922975716,7.62131426,1631.3,1631.0,14.2988255]
[1693922976015,13.75141426,1631.3,1631.0,14.2988255]
[1693922978657,0.20369186,1631.2,1631.0,14.2988255]
[1693922979161,0.20369186,1631.2,1631.1,1.42988255]
[1693922979322,3.27070612,1631.2,1631.1,6.13083]
[1693922979528,3.27070612,1631.2,1631.0,6.13113]
[1693922979529,9.40115612,1631.2,1631.0,6.13113]
[1693922980736,15.53160612,1631.2,1630.8,12.26349]
[1693922980935,3.06701426,1631.1,1630.8,12.26366]
[1693922981118,11.50199426,1631.1,1630.8,12.26366]
[1693922981323,11.50199426,1631.1,1630.8,6.13185]
[1693922981324,20.04467426,1631.1,1630.8,6.13185]
[1693922981525,20.04467426,1631.1,1630.8,6.6185435]
[1693922981526,13.91354426,1631.1,1630.8,6.6185435]
[1693922981727,20.04437426,1631.1,1630.8,6.6185435]
[1693922982037,22.94438593,1631.1,1630.8,6.6185435]
[1693922982237,29.07521593,1631.1,1630.8,6.13185]
[1693922982440,22.94438593,1631.1,1630.8,6.13185]
[1693922985752,22.89438593,1631.1,1630.8,6.13185]
[1693922986462,22.89438593,1631.1,1630.8,12.2638]
[1693922989261,7.73271426,1631.1,1630.8,18.39575]
[1693922992084,2.47419186,1631.2,1630.8,19.71375]
[1693922994385,2.47419186,1631.2,1630.8,18.39575]
[1693922994784,5.54120612,1631.2,1630.8,12.2638]
[1693922994965,17.80213612,1631.2,1630.8,12.2638]
[1693922995286,17.80213612,1631.2,1630.8,6.13185]
[1693922995287,3.06701426,1631.1,1630.8,6.13185]
[1693922995451,6.1312,1631.0,1630.8,6.13185]
[1693922995650,17.82777426,1631.1,1630.8,12.2638]
[1693922995858,0.19678233,1630.9,1630.8,12.2638]
[1693922996064,11.69668426,1631.1,1630.8,14.103379]
[1693922996257,2.3128,1631.0,1630.8,14.103379]
[1693923000667,2.3128,1631.0,1630.8,20.235329]
[1693923001968,2.3128,1631.0,1630.8,14.103379]
[1693923002477,2.4987,1631.1,1630.8,20.235329]
[1693923002676,2.2479,1631.2,1630.9,2.0235329]
[1693923002873,2.2479,1631.2,1631.0,18.3936]
[1693923003072,5.59041426,1631.3,1631.0,18.3936]
[1693923003372,5.59041426,1631.3,1631.0,19.7116]
[1693923003373,2.5234,1631.3,1631.0,19.7116]
[1693923003571,9.00812728,1631.6,1631.1,1.97116]
[1693923003572,7.40879201,1631.6,1631.1,1.97116]
[1693923003779,13.96773426,1631.5,1631.2,12.2607]
[1693923004869,20.09722426,1631.5,1631.2,12.2607]
[1693923005473,20.09722426,1631.5,1631.2,18.39115]
[1693923005474,7.83831426,1631.5,1631.2,18.39115]
[1693923005699,7.83831426,1631.5,1631.3,1.839115]
[1693923005901,7.83831426,1631.5,1631.3,14.098925]
[1693923006481,7.83831426,1631.5,1631.3,7.968885]
[1693923006687,13.96765426,1631.5,1631.3,6.12977]
[1693923008491,0.21542447,1631.4,1631.3,6.12977]
[1693923013995,0.21542447,1631.4,1631.2,12.26058]
[1693923021637,0.21542447,1631.4,1631.3,4.318]
[1693923022002,2.4975,1631.8,1631.3,26.77375917]
[1693923022003,0.101,1631.8,1631.3,26.77375917]
[1693923022230,0.101,1631.8,1631.4,3.74286121]
[1693923022429,0.101,1631.8,1631.5,18.38775]
[1693923023005,0.101,1631.8,1631.5,19.70575]
[1693923023234,0.101,1631.8,1631.5,18.38775]
[1693923023536,0.21535915,1631.7,1631.5,18.38775]
[1693923023722,0.21535915,1631.7,1631.6,1.838775]
[1693923023925,0.21535915,1631.7,1631.6,14.096675]
[1693923026125,0.21535915,1631.7,1631.6,14.096675]
[1693923026731,0.21535915,1631.7,1631.6,6.12895]
[1693923032248,2.2254,1631.8,1631.6,6.12895]
[1693923033310,0.00366549,1631.7,1631.6,6.12895]
[1693923033511,0.00366549,1631.7,1631.6,12.2579]
[1693923034238,2.2254,1631.8,1631.6,12.2579]
[1693923036913,2.2254,1631.8,1631.6,20.27476791]
[1693923037131,0.101,1631.8,1631.6,20.27476791]
[1693923037455,0.101,1631.8,1631.6,21.59276791]
[1693923038184,0.101,1631.8,1631.7,25.70371]
[1693923038343,0.101,1632.1,1631.7,28.36701833]
[1693923038537,0.101,1632.1,1631.9,19.70146]
[1693923038944,0.101,1632.1,1631.9,18.38346]
[1693923039346,0.00358553,1632.0,1631.9,18.38346]
[1693923049253,0.00358553,1632.0,1631.9,19.448729]
[1693923049752,0.00358553,1632.0,1631.9,18.38346]
[1693923049957,0.00358553,1632.0,1631.9,20.35462]
[1693923051475,0.00358553,1632.0,1631.9,21.41990721]
[1693923051683,0.00358553,1632.0,1631.9,20.35462]
[1693923053087,0.00358553,1632.0,1631.9,21.41990886]
[1693923053386,0.00358553,1632.0,1631.9,21.91579589]
[1693923057489,0.00358553,1632.0,1631.9,23.51370692]
[1693923057691,0.00358553,1632.0,1631.9,21.91579589]
[1693923060492,1e-08,1632.0,1631.9,37.97737529]
[1693923060693,1e-08,1632.0,1631.9,46.55639293]
[1693923060855,1e-08,1632.0,1631.9,47.16879293]
[1693923061262,0.101,1632.1,1631.9,47.16879293]
[1693923061462,0.101,1632.1,1632.0,18.93336276]
[1693923061659,0.101,1632.1,1632.0,37.31571276]
[1693923061995,0.101,1632.1,1632.0,37.9565773]
[1693923062402,0.10418611,1632.1,1632.0,37.9565773]
[1693923063434,0.10418611,1632.1,1632.0,37.31571276]
[1693923063786,0.10418611,1632.1,1632.0,37.95687279]
[1693923064170,0.10418611,1632.1,1632.0,37.31571276]
[1693923065165,0.101,1632.1,1632.0,37.31571276]
[1693923066606,0.101,1632.1,1632.0,38.59899236]
[1693923067430,0.101,1632.1,1632.0,37.31571276]
[1693923067915,0.101,1632.1,1632.0,39.23876091]
[1693923068476,0.101,1632.1,1632.0,37.63779182]
[1693923069438,0.101,1632.1,1632.0,39.23876091]
[1693923069625,0.101,1632.1,1632.0,37.63779182]
[1693923069992,0.101,1632.1,1632.0,39.23876091]
[1693923070499,0.101,1632.1,1632.0,37.95548131]
[1693923070738,0.101,1632.1,1632.0,40.20607513]
[1693923071638,0.101,1632.3,1632.0,40.20607513]
[1693923071639,0.101,1632.4,1632.3,0.707]
[1693923071816,0.101,1632.4,1632.3,19.08596]
[1693923072138,0.101,1632.4,1632.3,23.63695007]
[1693923072305,0.10535597,1632.4,1632.3,23.63695007]
[1693923072710,0.10535597,1632.4,1632.3,25.23976015]
[1693923073336,0.101,1632.4,1632.3,21.74903216]
[1693923073498,0.101,1632.4,1632.3,23.67263843]
[1693923073930,0.101,1632.4,1632.3,22.36143216]
[1693923074130,0.101,1632.4,1632.3,24.28503843]
[1693923074336,0.101,1632.4,1632.3,25.60303843]
[1693923074635,0.101,1632.4,1632.3,29.30962409]
[1693923075434,0.101,1632.4,1632.3,27.06541678]
[1693923076719,0.101,1632.4,1632.3,27.67015053]
[1693923076921,0.101,1632.4,1632.3,24.28416591]
[1693923077111,0.101,1632.4,1632.3,22.36143216]
[1693923077730,0.101,1632.4,1632.3,24.28418345]
[1693923078432,1.79393196,1632.5,1632.3,24.28418345]
[1693923078641,1.79393196,1632.5,1632.4,21.04089216]
[1693923078839,1.79393196,1632.5,1632.4,24.08182851]
[1693923079540,1.79393196,1632.5,1632.4,25.68410008]
[1693923079846,1.79393196,1632.5,1632.4,22.64316373]